[Event "VIII Iberoamericano Mexico 2022"]
[Site "Mexico City"]
[Date "2022.02.18"]
[Round "7.30"]
[White "Fernandez Rivero, Karla July"]
[Black "Frey Beckman, Kenneth"]
[Result "0-1"]
[ECO "E11"]
[WhiteElo "2025"]
[BlackElo "2242"]
[Annotator "NA"]
[PlyCount "82"]
[EventDate "2022.02.12"]
[EventType "swiss"]
[EventCountry "MEX"]
[SourceTitle "playchess.com"]
[Source "ChessBase"]
[SourceQuality "1"]
[TimeControl "5400+30"]

1. d4 {[%emt 0:00:06]} Nf6 {[%emt 0:00:08]} 2. c4 {[%emt 0:00:22]} e6 {[%emt 0:00:10]} 3. Nf3 {[%emt 0:00:22]} d5 {[%emt 0:00:23]} 4. g3 {[%emt 0:00:26]} Bb4+ {[%emt 0:00:14]} 5. Bd2 {[%emt 0:00:52]} Be7 {[%emt 0:00:15]} 6. Qc2 {[%emt 0:01:16]} O-O {[%emt 0:00:45]} 7. Bg2 {[%emt 0:00:24]} c6 {[%emt 0:00:28]} 8. O-O {[%emt 0:01:23]} b6 {[%emt 0:00:15]} 9. b3 {[%emt 0:01:49]} a5 {[%emt 0:01:08]} 10. Rc1 {[%emt 0:03:10]} Ba6 {[%emt 0:01:26]} 11. Bf4 {[%emt 0:04:56]} Nh5 {[%emt 0:00:34]} 12. Bd2 {[%emt 0:03:36]} Nd7 {[%emt 0:05:21]} 13. a4 {[%emt 0:07:25]} Nhf6 {[%emt 0:03:52]} 14. Be1 {[%emt 0:01:16]} Rc8 {[%emt 0:00:43]} 15. Nbd2 {[%emt 0:01:04]} c5 {[%emt 0:00:35]} 16. e3 {[%emt 0:01:09]} cxd4 {[%emt 0:09:44]} 17. exd4 {[%emt 0:04:10]} Bb4 {[%emt 0:05:48]} 18. Qb2 {[%emt 0:05:02]} Qe7 {[%emt 0:04:16]} 19. Bf1 {[%emt 0:11:43]} Bb7 {[%emt 0:03:36]} 20. Bg2 {[%emt 0:06:40]} Ba8 {[%emt 0:12:42]} 21. Nf1 {[%emt 0:02:41]} Bxe1 {[%emt 0:17:07]} 22. Nxe1 {[%emt 0:01:15]} e5 {[%emt 0:00:19]} 23. Ne3 {[%emt 0:06:26]} exd4 {[%emt 0:00:23]} 24. Qxd4 {[%emt 0:05:11]} Qc5 {[%emt 0:03:29]} 25. Qf4 {[%emt 0:03:17]} dxc4 {[%emt 0:03:20]} 26. Bxa8 {[%emt 0:03:54]} Rxa8 {[%emt 0:00:11]} 27. Nd3 {[%emt 0:01:56]} cxd3 {[%emt 0:05:30]} 28. Rxc5 {[%emt 0:00:09]} Nxc5 {[%emt 0:00:07]} 29. Rb1 {[%emt 0:09:45]} Rfd8 {[%emt 0:02:19]} 30. Qf3 {[%emt 0:04:21]} Nfe4 {[%emt 0:02:32]} 31. Qg4 {[%emt 0:03:15]} Nc3 {[%emt 0:03:32]} 32. Rf1 {[%emt 0:00:41]} Rd4 {[%emt 0:04:32]} 33. Qg5 {[%emt 0:01:52]} Rad8 {[%emt 0:03:19]} 34. h4 {[%emt 0:01:46]} d2 {[%emt 0:00:58]} 35. Nd1 {[%emt 0:02:08]} h6 {[%emt 0:01:14]} 36. Qe3 {[%emt 0:00:26]} Nxd1 {[%emt 0:00:26]} 37. Rxd1 {[%emt 0:00:05]} Rd3 {[%emt 0:00:18]} 38. Qe5 {[%emt 0:01:29]} Rxb3 {[%emt 0:00:56]} 39. Qc7 {[%emt 0:00:47]} Rbd3 {[%emt 0:00:10]} 40. Qxb6 {[%emt 0:00:25]} Nxa4 {[%emt 0:00:09]} 41. Qxa5 {[%emt 0:00:42]} Nb2 {[%emt 0:00:09]} 0-1

[Event "VIII Iberoamericano Mexico 2022"]
[Site "Mexico City"]
[Date "2022.02.18"]
[Round "7.31"]
[White "Blanco Fernandez, Alvaro"]
[Black "Encinas Varela, David"]
[Result "1/2-1/2"]
[ECO "E92"]
[WhiteElo "2216"]
[BlackElo "1862"]
[Annotator "NA"]
[PlyCount "131"]
[EventDate "2022.02.12"]
[EventType "swiss"]
[EventCountry "MEX"]
[SourceTitle "playchess.com"]
[Source "ChessBase"]
[SourceQuality "1"]
[TimeControl "5400+30"]

1. d4 {[%emt 1:31:00]} Nf6 {[%emt 0:00:11]} 2. c4 {[%emt 0:00:00]} g6 {[%emt 0:00:08]} 3. Nc3 {[%emt 0:00:00]} Bg7 {[%emt 0:00:36]} 4. e4 {[%emt 0:00:00]} d6 {[%emt 0:00:01]} 5. Be2 {[%emt 0:00:00]} O-O {[%emt 0:00:07]} 6. Be3 {[%emt 0:00:00]} Nc6 {[%emt 0:00:47]} 7. Nf3 {[%emt 0:00:00]} e5 {[%emt 0:00:24]} 8. d5 {[%emt 0:00:00]} Ne7 {[%emt 0:00:12]} 9. Nd2 {[%emt 0:00:00]} Nd7 {[%emt 0:02:19]} 10. Qc2 {[%emt 0:00:00]} f5 {[%emt 0:00:49]} 11. f3 {[%emt 0:00:00]} b6 {[%emt 0:05:06]} 12. O-O-O {[%emt 0:00:00]} a5 {[%emt 0:00:46]} 13. Kb1 {[%emt 0:00:00]} Nc5 {[%emt 0:00:21]} 14. Nb3 {[%emt 0:00:00]} Bd7 {[%emt 0:01:05]} 15. Nxc5 {[%emt 0:00:00]} bxc5 {[%emt 0:00:28]} 16. a4 {[%emt 0:00:00]} Nc8 {[%emt 0:11:20]} 17. Nb5 {[%emt 0:00:00]} Nb6 {[%emt 0:00:14]} 18. b3 {[%emt 0:00:00]} Be8 {[%emt 0:07:56]} 19. Bd3 {[%emt 0:00:00]} Nd7 {[%emt 0:02:41]} 20. g4 {[%emt 0:00:00]} f4 {[%emt 0:18:41]} 21. Bf2 {[%emt 0:00:00]} Nb8 {[%emt 0:00:26]} 22. Bf1 {[%emt 0:00:00]} Na6 {[%emt 0:02:14]} 23. h4 {[%emt 0:00:00]} Nb4 {[%emt 0:02:55]} 24. Qe2 {[%emt 0:00:00]} Bxb5 {[%emt 0:03:56]} 25. cxb5 {[%emt 0:00:00]} h6 {[%emt 0:00:06]} 26. g5 {[%emt 0:00:00]} h5 {[%emt 0:00:31]} 27. Bh3 {[%emt 0:00:00]} Re8 {[%emt 0:10:03]} 28. Kb2 {[%emt 0:00:00]} Rb8 {[%emt 0:06:26]} 29. Qc4 {[%emt 0:00:00]} Kh7 {[%emt 0:00:47]} 30. Ra1 {[%emt 0:00:00]} Rb7 {[%emt 0:13:42]} 31. Rhc1 {[%emt 0:00:00]} Qb8 {[%emt 0:00:47]} 32. Be1 {[%emt 0:00:00]} Qa7 {[%emt 0:01:18]} 33. Bc3 {[%emt 0:00:00]} Re7 {[%emt 0:00:36]} 34. Rd1 {[%emt 0:00:00]} Bf8 {[%emt 0:01:19]} 35. Rd2 {[%emt 0:00:00]} Rg7 {[%emt 0:00:37]} 36. Qf1 {[%emt 0:00:00]} Re7 {[%emt 0:01:00]} 37. Rc1 {[%emt 0:00:00]} Rb8 {[%emt 0:00:09]} 38. Be6 {[%emt 0:00:00]} Ra8 {[%emt 0:00:48]} 39. Qh3 {[%emt 0:00:00]} Bg7 {[%emt 0:00:19]} 40. Bf5 {[%emt 0:00:00]} Rf8 {[%emt 0:00:07]} 41. Be6 {[%emt 0:00:00]} Qb6 {[%emt 0:00:22]} 42. Qg2 {[%emt 0:00:00]} c6 {[%emt 0:01:55]} 43. Bxb4 {[%emt 0:00:00]} cxb5 {[%emt 0:00:08]} 44. Ba3 {[%emt 0:00:00]} b4 {[%emt 0:00:05]} 45. Rc4 {[%emt 0:00:00]} bxa3+ {[%emt 0:00:05]} 46. Kxa3 {[%emt 0:00:00]} Rb8 {[%emt 0:00:24]} 47. Rb2 {[%emt 0:00:00]} Reb7 {[%emt 0:00:08]} 48. Qc2 {[%emt 0:00:00]} Qd8 {[%emt 0:01:26]} 49. Bh3 Rb4 {[%emt 0:00:23]} 50. Rxb4 {[%emt 0:00:00]} Rxb4 {[%emt 0:00:04]} 51. Bf1 {[%emt 0:00:00]} Qb8 {[%emt 0:01:24]} 52. Qg2 {[%emt 0:00:00]} Rd4 {[%emt 0:03:35]} 53. Bb5 {[%emt 0:00:00]} Qb6 {[%emt 0:00:12]} 54. Rc2 {[%emt 0:00:00]} Rd1 {[%emt 0:01:29]} 55. Rc4 {[%emt 0:00:00]} Rd3 {[%emt 0:00:40]} 56. Qh3 {[%emt 0:00:00]} Re3 {[%emt 0:00:28]} 57. Ka2 {[%emt 0:00:00]} Re2+ {[%emt 0:00:17]} 58. Kb1 {[%emt 0:00:00]} Re1+ {[%emt 0:00:07]} 59. Kc2 {[%emt 0:00:00]} Re2+ {[%emt 0:00:10]} 60. Kc1 {[%emt 0:00:00]} Re3 {[%emt 0:00:07]} 61. Kc2 {[%emt 0:00:00]} Re2+ {[%emt 0:00:03]} 62. Kc1 {[%emt 0:00:00]} Re3 {[%emt 0:00:04]} 63. Kb2 {[%emt 0:00:00]} Re2+ {[%emt 0:00:04]} 64. Ka3 {[%emt 0:00:00]} Re3 {[%emt 0:00:27]} 65. Kb2 {[%emt 0:00:00]} Re2+ {[%emt 0:00:03]} 66. Kc1 {[%emt 0:00:00]} 1/2-1/2

[Event "VIII Iberoamericano Mexico 2022"]
[Site "Mexico City"]
[Date "2022.02.18"]
[Round "7.32"]
[White "Chinchilla Miranda, Eugenio"]
[Black "Torres Rivas, Felipe de Jesus"]
[Result "1-0"]
[ECO "D37"]
[WhiteElo "2193"]
[BlackElo "1845"]
[Annotator "NA"]
[PlyCount "87"]
[EventDate "2022.02.12"]
[EventType "swiss"]
[EventCountry "MEX"]
[SourceTitle "playchess.com"]
[Source "ChessBase"]
[SourceQuality "1"]
[TimeControl "5400+30"]

1. d4 {[%emt 0:00:03]} d5 {[%emt 0:18:26]} 2. c4 {[%emt 0:00:12]} e6 {[%emt 0:00:11]} 3. Nc3 {[%emt 0:00:11]} Nf6 {[%emt 0:00:09]} 4. Nf3 {[%emt 0:00:27]} Be7 {[%emt 0:00:42]} 5. Bf4 {[%emt 0:00:08]} O-O {[%emt 0:00:46]} 6. Rc1 {[%emt 0:00:12]} c6 {[%emt 0:02:08]} 7. e3 {[%emt 0:00:12]} Nbd7 {[%emt 0:00:15]} 8. h3 {[%emt 0:00:24]} Ne4 {[%emt 0:01:09]} 9. cxd5 {[%emt 0:04:36]} exd5 {[%emt 0:00:08]} 10. Nxe4 {[%emt 0:02:19]} dxe4 {[%emt 0:00:05]} 11. Nd2 {[%emt 0:00:21]} Nf6 {[%emt 0:00:51]} 12. Bc4 {[%emt 0:02:28]} Bf5 {[%emt 0:06:00]} 13. O-O {[%emt 0:04:05]} Nd5 {[%emt 0:00:53]} 14. Bh2 {[%emt 0:03:42]} Bd6 {[%emt 0:02:25]} 15. Qb3 {[%emt 0:06:07]} Bxh2+ {[%emt 0:00:21]} 16. Kxh2 {[%emt 0:00:05]} Qd6+ {[%emt 0:00:49]} 17. Kg1 {[%emt 0:01:19]} Nb6 {[%emt 0:21:16]} 18. a4 {[%emt 0:07:45]} Qg6 {[%emt 0:00:41]} 19. Kh2 {[%emt 0:00:27]} Qd6+ {[%emt 0:00:21]} 20. Kh1 {[%emt 0:01:08]} Qh6 {[%emt 0:00:22]} 21. Rfd1 {[%emt 0:02:22]} Qh4 {[%emt 0:09:13]} 22. a5 {[%emt 0:05:10]} Nxc4 {[%emt 0:00:29]} 23. Nxc4 {[%emt 0:03:03]} Rae8 {[%emt 0:05:05]} 24. d5 {[%emt 0:15:24]} Bxh3 {[%emt 0:13:07]} 25. gxh3 {[%emt 0:03:28]} cxd5 {[%emt 0:00:04]} 26. Rxd5 {[%emt 0:00:42]} Re6 {[%emt 0:00:19]} 27. Rd6 {[%emt 0:01:44]} Rxd6 {[%emt 0:13:02]} 28. Nxd6 {[%emt 0:01:31]} Qxh3+ {[%emt 0:02:02]} 29. Kg1 {[%emt 0:00:03]} Qg4+ {[%emt 0:00:05]} 30. Kf1 {[%emt 0:00:23]} Qf3 {[%emt 0:00:04]} 31. Qc4 {[%emt 0:02:12]} Qh1+ {[%emt 0:00:47]} 32. Ke2 {[%emt 0:00:01]} Qh5+ {[%emt 0:00:06]} 33. Ke1 {[%emt 0:01:27]} Qxa5+ {[%emt 0:03:41]} 34. b4 {[%emt 0:00:03]} Qb6 {[%emt 0:00:27]} 35. Nxe4 {[%emt 0:00:24]} h5 {[%emt 0:00:28]} 36. Ng5 {[%emt 0:01:48]} Qg6 {[%emt 0:00:32]} 37. f4 {[%emt 0:01:13]} h4 {[%emt 0:00:36]} 38. Qc2 {[%emt 0:03:27]} Qh6 {[%emt 0:00:52]} 39. Qf5 {[%emt 0:00:32]} g6 {[%emt 0:00:29]} 40. Qg4 {[%emt 0:02:28]} Re8 {[%emt 0:00:27]} 41. Rc8 {[%emt 0:00:30]} Qf8 {[%emt 0:00:27]} 42. Qxh4 {[%emt 0:06:13]} Qxb4+ {[%emt 0:00:13]} 43. Ke2 {[%emt 0:21:41]} Qb5+ 44. Kf2 {[%emt 0:00:30]} 1-0

[Event "VIII Iberoamericano Mexico 2022"]
[Site "Mexico City"]
[Date "2022.02.18"]
[Round "7.33"]
[White "Zaragoza Alanis, Miguel Arnulfo"]
[Black "Hernandez Jimenez, Alexander Andres"]
[Result "0-1"]
[ECO "B90"]
[WhiteElo "1342"]
[BlackElo "2167"]
[Annotator "NA"]
[PlyCount "76"]
[EventDate "2022.02.12"]
[EventType "swiss"]
[EventCountry "MEX"]
[SourceTitle "playchess.com"]
[Source "ChessBase"]
[SourceQuality "1"]
[TimeControl "5400+30"]

1. e4 {[%emt 0:00:02]} c5 {[%emt 0:00:09]} 2. Nf3 {[%emt 0:00:04]} d6 {[%emt 0:00:07]} 3. d4 {[%emt 0:00:03]} cxd4 {[%emt 0:00:09]} 4. Nxd4 {[%emt 0:00:03]} Nf6 {[%emt 0:00:10]} 5. Nc3 {[%emt 0:00:04]} a6 {[%emt 0:00:08]} 6. f3 {[%emt 0:00:05]} e5 {[%emt 0:00:07]} 7. Nb3 {[%emt 0:00:03]} Be6 {[%emt 0:00:07]} 8. Be3 {[%emt 0:00:05]} h5 {[%emt 0:00:07]} 9. Nd5 {[%emt 0:01:54]} Bxd5 {[%emt 0:01:16]} 10. exd5 {[%emt 0:00:02]} Nbd7 {[%emt 0:00:16]} 11. c4 {[%emt 0:00:22]} g6 {[%emt 0:09:44]} 12. Bd3 {[%emt 0:02:19]} Bg7 {[%emt 0:00:30]} 13. Qd2 {[%emt 0:01:41]} O-O {[%emt 0:00:54]} 14. Na5 {[%emt 0:03:07]} e4 {[%emt 0:05:05]} 15. Be2 {[%emt 0:08:36]} exf3 {[%emt 0:02:37]} 16. gxf3 {[%emt 0:03:03]} Re8 {[%emt 0:00:38]} 17. Nb3 {[%emt 0:00:57]} b5 {[%emt 0:16:08]} 18. Nd4 {[%emt 0:02:21]} Ne5 {[%emt 0:01:52]} 19. b3 {[%emt 0:08:05]} bxc4 {[%emt 0:01:19]} 20. bxc4 {[%emt 0:00:41]} Rc8 {[%emt 0:00:45]} 21. Rc1 {[%emt 0:01:22]} Qd7 {[%emt 0:31:59]} 22. O-O {[%emt 0:06:42]} Qa4 {[%emt 0:00:10]} 23. Bd1 {[%emt 0:01:58]} Qa3 {[%emt 0:01:02]} 24. Rc3 {[%emt 0:22:03]} Qb4 {[%emt 0:01:28]} 25. a3 {[%emt 0:02:31]} Qa5 {[%emt 0:00:22]} 26. Nb3 {[%emt 0:01:38]} Qd8 {[%emt 0:06:59]} 27. Be2 {[%emt 0:01:22]} Nfd7 {[%emt 0:02:16]} 28. Rc2 {[%emt 0:06:58]} Qh4 {[%emt 0:01:28]} 29. Nd4 {[%emt 0:05:17]} Nxc4 {[%emt 0:03:39]} 30. Rxc4 {[%emt 0:02:22]} Rxc4 {[%emt 0:00:01]} 31. Nc6 {[%emt 0:03:08]} Rc3 {[%emt 0:03:05]} 32. Bf2 {[%emt 0:03:09]} Qa4 {[%emt 0:00:55]} 33. Bd1 {[%emt 0:04:10]} Qc4 {[%emt 0:01:59]} 34. Re1 {[%emt 0:00:49]} Rxe1+ {[%emt 0:00:13]} 35. Qxe1 {[%emt 0:00:10]} Ne5 {[%emt 0:00:44]} 36. Bg3 {[%emt 0:01:29]} Rc1 {[%emt 0:02:00]} 37. Kg2 {[%emt 0:00:36]} Qd3 {[%emt 0:02:48]} 38. Bxe5 {[%emt 0:03:08]} Rxd1 {[%emt 0:01:41]} 0-1

[Event "VIII Iberoamericano Mexico 2022"]
[Site "Mexico City"]
[Date "2022.02.18"]
[Round "7.34"]
[White "Gongora Montes, Benjamin"]
[Black "Ramirez Toledo, Ayleen Maribel"]
[Result "1-0"]
[ECO "E62"]
[WhiteElo "2157"]
[BlackElo "1810"]
[Annotator "NA"]
[PlyCount "91"]
[EventDate "2022.02.12"]
[EventType "swiss"]
[EventCountry "MEX"]
[SourceTitle "playchess.com"]
[Source "ChessBase"]
[SourceQuality "1"]
[TimeControl "5400+30"]

1. d4 {[%emt 0:00:03]} Nf6 {[%emt 0:00:05]} 2. Nf3 {[%emt 0:00:13]} g6 {[%emt 0:00:06]} 3. g3 {[%emt 0:00:05]} Bg7 {[%emt 0:00:07]} 4. Bg2 {[%emt 0:00:08]} O-O {[%emt 0:00:13]} 5. O-O {[%emt 0:00:07]} d6 {[%emt 0:00:20]} 6. c4 {[%emt 0:00:13]} Nc6 {[%emt 0:00:12]} 7. Nc3 {[%emt 0:00:10]} Bg4 {[%emt 0:00:15]} 8. h3 {[%emt 0:00:07]} Bxf3 {[%emt 0:00:07]} 9. Bxf3 {[%emt 0:00:43]} Nd7 {[%emt 0:00:08]} 10. Be3 {[%emt 0:00:47]} e5 {[%emt 0:00:32]} 11. d5 {[%emt 0:00:39]} Ne7 {[%emt 0:01:00]} 12. Bg2 {[%emt 0:06:43]} f5 {[%emt 0:03:53]} 13. f4 {[%emt 0:00:19]} h6 {[%emt 0:04:58]} 14. fxe5 {[%emt 0:04:26]} Nxe5 {[%emt 0:02:26]} 15. c5 {[%emt 0:00:09]} Nc4 {[%emt 0:02:29]} 16. Bf2 {[%emt 0:00:07]} g5 {[%emt 0:22:26]} 17. Qc2 {[%emt 0:04:01]} dxc5 {[%emt 0:04:28]} 18. Bxc5 {[%emt 0:00:22]} Nd6 {[%emt 0:00:31]} 19. Rad1 {[%emt 0:02:37]} Be5 {[%emt 0:02:35]} 20. Rd3 {[%emt 0:05:09]} Ng6 {[%emt 0:07:56]} 21. Rdf3 {[%emt 0:16:11]} Qe8 {[%emt 0:14:09]} 22. Qd3 {[%emt 0:07:45]} Ne7 {[%emt 0:04:52]} 23. Bd4 {[%emt 0:10:39]} Ng6 {[%emt 0:00:53]} 24. Bc5 {[%emt 0:05:27]} Ne7 {[%emt 0:01:32]} 25. e4 {[%emt 0:05:59]} f4 {[%emt 0:11:05]} 26. gxf4 {[%emt 0:00:14]} gxf4 {[%emt 0:00:15]} 27. Qd1 {[%emt 0:09:32]} Kh7 {[%emt 0:06:15]} 28. Rd3 {[%emt 0:00:29]} Rg8 {[%emt 0:03:20]} 29. Kh1 {[%emt 0:00:11]} Rg5 {[%emt 0:03:21]} 30. Bf3 {[%emt 0:01:34]} Qg6 {[%emt 0:01:21]} 31. Rg1 {[%emt 0:00:25]} Rg8 {[%emt 0:00:37]} 32. Rxg5 {[%emt 0:01:54]} Qxg5 {[%emt 0:00:14]} 33. Bf2 {[%emt 0:02:40]} Ng6 {[%emt 0:01:14]} 34. Qg1 {[%emt 0:00:33]} Qf6 {[%emt 0:00:48]} 35. Qg4 {[%emt 0:00:26]} Ne7 {[%emt 0:02:21]} 36. Qh4 {[%emt 0:01:47]} Qg7 {[%emt 0:00:18]} 37. Qh5 {[%emt 0:05:48]} Qf6 {[%emt 0:00:22]} 38. Bh4 {[%emt 0:01:31]} Qg7 {[%emt 0:00:04]} 39. Bg4 {[%emt 0:00:15]} Ne8 {[%emt 0:01:31]} 40. Bxe7 {[%emt 0:01:24]} Qxe7 {[%emt 0:00:03]} 41. Bf5+ {[%emt 0:00:22]} Kg7 {[%emt 0:00:34]} 42. Be6 {[%emt 0:02:03]} Nf6 {[%emt 0:00:52]} 43. Qxe5 {[%emt 0:00:11]} Rf8 {[%emt 0:00:37]} 44. Qxf4 {[%emt 0:00:40]} Rh8 {[%emt 0:00:33]} 45. Rg3+ {[%emt 0:00:16]} Kf8 {[%emt 0:00:00]} 46. e5 {[%emt 0:00:27]} 1-0

[Event "VIII Iberoamericano Mexico 2022"]
[Site "Mexico City"]
[Date "2022.02.18"]
[Round "7.35"]
[White "Diaz Rosas, Julio Cesar"]
[Black "Santanna, Paulo"]
[Result "1-0"]
[ECO "C00"]
[WhiteElo "2393"]
[BlackElo "1928"]
[Annotator "NA"]
[PlyCount "77"]
[EventDate "2022.02.12"]
[EventType "swiss"]
[EventCountry "MEX"]
[SourceTitle "playchess.com"]
[Source "ChessBase"]
[SourceQuality "1"]
[TimeControl "5400+30"]

1. e4 {[%emt 0:00:24]} c5 {[%emt 0:00:07]} 2. Nf3 {[%emt 0:00:06]} e6 {[%emt 0:00:05]} 3. g3 {[%emt 0:00:11]} Nc6 {[%emt 0:01:44]} 4. Bg2 {[%emt 0:00:07]} Nf6 {[%emt 0:06:14]} 5. Qe2 {[%emt 0:00:08]} d6 {[%emt 0:00:59]} 6. O-O {[%emt 0:00:12]} Be7 {[%emt 0:01:00]} 7. c3 {[%emt 0:00:17]} O-O {[%emt 0:03:56]} 8. d4 {[%emt 0:00:32]} cxd4 {[%emt 0:05:19]} 9. cxd4 {[%emt 0:00:08]} d5 {[%emt 0:01:14]} 10. e5 {[%emt 0:00:08]} Ne4 {[%emt 0:05:46]} 11. Nc3 {[%emt 0:04:11]} Nxc3 {[%emt 0:03:59]} 12. bxc3 {[%emt 0:00:03]} b6 {[%emt 0:00:07]} 13. h4 {[%emt 0:00:46]} a5 {[%emt 0:00:37]} 14. Qc2 {[%emt 0:00:43]} Ba6 {[%emt 0:04:00]} 15. Re1 {[%emt 0:00:14]} h6 {[%emt 0:04:30]} 16. Be3 {[%emt 0:02:47]} Re8 {[%emt 0:02:26]} 17. Nh2 {[%emt 0:00:44]} Bf8 {[%emt 0:04:03]} 18. f4 {[%emt 0:00:56]} Rc8 {[%emt 0:04:04]} 19. f5 {[%emt 0:02:18]} exf5 {[%emt 0:03:57]} 20. Qxf5 {[%emt 0:00:37]} Ne7 {[%emt 0:01:59]} 21. Qc2 {[%emt 0:00:18]} Qd7 {[%emt 0:05:10]} 22. Rac1 {[%emt 0:08:59]} Rc6 {[%emt 0:04:35]} 23. Qf2 {[%emt 0:00:14]} Rec8 {[%emt 0:02:04]} 24. Bd2 {[%emt 0:00:31]} f6 {[%emt 0:13:23]} 25. Nf3 {[%emt 0:01:19]} Qf5 {[%emt 0:05:27]} 26. Kh2 {[%emt 0:01:46]} g5 {[%emt 0:04:24]} 27. exf6 {[%emt 0:02:20]} Rxf6 {[%emt 0:01:57]} 28. Re5 {[%emt 0:00:07]} Qh7 {[%emt 0:00:41]} 29. hxg5 {[%emt 0:01:03]} hxg5+ {[%emt 0:00:03]} 30. Kg1 {[%emt 0:00:14]} g4 {[%emt 0:03:25]} 31. Rg5+ {[%emt 0:00:03]} Rg6 {[%emt 0:00:18]} 32. Ne5 {[%emt 0:01:40]} Rxg5 {[%emt 0:00:39]} 33. Bxg5 {[%emt 0:00:04]} Bh6 {[%emt 0:01:40]} 34. Bxh6 {[%emt 0:01:40]} Qxh6 {[%emt 0:00:09]} 35. Bxd5+ {[%emt 0:00:19]} Kg7 {[%emt 0:00:57]} 36. Qf7+ {[%emt 0:01:27]} Kh8 {[%emt 0:00:02]} 37. Re1 {[%emt 0:00:47]} Qh3 {[%emt 0:04:53]} 38. Qf6+ {[%emt 0:00:22]} Kh7 {[%emt 0:00:06]} 39. Qxe7+ {[%emt 0:00:10]} 1-0

[Event "VIII Iberoamericano Mexico 2022"]
[Site "Mexico City"]
[Date "2022.02.18"]
[Round "7.36"]
[White "Flores Guerrero, Jesus Aldair"]
[Black "Zacarias Rodriguez, Santiago"]
[Result "0-1"]
[ECO "A02"]
[WhiteElo "2251"]
[BlackElo "1896"]
[Annotator "NA"]
[PlyCount "80"]
[EventDate "2022.02.12"]
[EventType "swiss"]
[EventCountry "MEX"]
[SourceTitle "playchess.com"]
[Source "ChessBase"]
[SourceQuality "1"]
[TimeControl "5400+30"]

1. f4 {[%emt 0:00:11]} Nf6 {[%emt 0:10:58]} 2. Nf3 {[%emt 0:00:16]} g6 {[%emt 0:00:26]} 3. b3 {[%emt 0:00:05]} Bg7 {[%emt 0:00:04]} 4. Bb2 {[%emt 0:00:06]} O-O {[%emt 0:00:17]} 5. e3 {[%emt 0:00:36]} c5 {[%emt 0:00:24]} 6. Qc1 {[%emt 0:02:44]} d5 {[%emt 0:00:53]} 7. Nc3 {[%emt 0:00:09]} Nc6 {[%emt 0:12:49]} 8. Bb5 {[%emt 0:00:33]} Na5 {[%emt 0:00:45]} 9. Be2 {[%emt 0:00:19]} a6 {[%emt 0:00:13]} 10. O-O {[%emt 0:00:09]} Nc6 {[%emt 0:01:04]} 11. Nd1 {[%emt 0:00:11]} d4 {[%emt 0:01:48]} 12. Nf2 {[%emt 0:00:59]} Nd5 {[%emt 0:01:36]} 13. Nd3 {[%emt 0:04:30]} Qd6 {[%emt 0:01:09]} 14. c3 {[%emt 0:03:21]} dxc3 {[%emt 0:11:04]} 15. dxc3 {[%emt 0:00:27]} Nf6 {[%emt 0:09:52]} 16. Rd1 {[%emt 0:04:12]} b6 {[%emt 0:08:06]} 17. c4 {[%emt 0:04:03]} Qb8 {[%emt 0:01:02]} 18. Nf2 {[%emt 0:02:56]} Ne8 {[%emt 0:05:42]} 19. Bxg7 {[%emt 0:07:55]} Nxg7 {[%emt 0:00:02]} 20. Qc3 {[%emt 0:00:12]} Qc7 {[%emt 0:02:24]} 21. a3 {[%emt 0:01:17]} a5 {[%emt 0:01:37]} 22. g4 {[%emt 0:01:57]} Re8 {[%emt 0:01:23]} 23. h3 {[%emt 0:01:33]} Bb7 {[%emt 0:03:04]} 24. g5 {[%emt 0:03:01]} Bc8 {[%emt 0:01:21]} 25. Kg2 {[%emt 0:03:29]} Bf5 {[%emt 0:02:34]} 26. e4 {[%emt 0:03:29]} Bc8 {[%emt 0:01:43]} 27. e5 {[%emt 0:00:46]} Ne6 {[%emt 0:01:32]} 28. Kg3 {[%emt 0:05:47]} Ncd4 {[%emt 0:00:54]} 29. Nxd4 {[%emt 0:02:14]} Nxd4 {[%emt 0:00:02]} 30. Bd3 {[%emt 0:01:57]} Bb7 {[%emt 0:04:57]} 31. Rd2 {[%emt 0:00:22]} f6 {[%emt 0:02:36]} 32. gxf6 {[%emt 0:01:39]} exf6 {[%emt 0:00:20]} 33. Ng4 {[%emt 0:00:13]} fxe5 {[%emt 0:01:15]} 34. Nf6+ {[%emt 0:01:23]} Kf7 {[%emt 0:00:59]} 35. Nxe8 {[%emt 0:01:26]} exf4+ {[%emt 0:00:05]} 36. Kf2 {[%emt 0:00:13]} Rxe8 {[%emt 0:00:07]} 37. Rg1 {[%emt 0:03:23]} Qe7 {[%emt 0:01:18]} 38. Bxg6+ {[%emt 0:06:08]} hxg6 {[%emt 0:00:08]} 39. Rb2 {[%emt 0:01:26]} Qh4+ {[%emt 0:02:58]} 40. Kf1 {[%emt 0:00:10]} Re3 {[%emt 0:00:08]} 0-1

[Event "VIII Iberoamericano Mexico 2022"]
[Site "Mexico City"]
[Date "2022.02.18"]
[Round "7.37"]
[White "Flores Irurso, Paul Josue"]
[Black "Guevara Sanchez, Erick Marvin"]
[Result "1-0"]
[ECO "B28"]
[WhiteElo "1912"]
[BlackElo "2145"]
[Annotator "NA"]
[PlyCount "77"]
[EventDate "2022.02.12"]
[EventType "swiss"]
[EventCountry "MEX"]
[SourceTitle "playchess.com"]
[Source "ChessBase"]
[SourceQuality "1"]
[TimeControl "5400+30"]

1. e4 {[%emt 0:00:03]} c5 {[%emt 0:04:40]} 2. Nf3 {[%emt 0:00:34]} a6 {[%emt 0:00:08]} 3. d4 {[%emt 0:03:39]} cxd4 {[%emt 0:00:09]} 4. Nxd4 {[%emt 0:00:12]} Nf6 {[%emt 0:00:12]} 5. Bd3 {[%emt 0:01:20]} e5 {[%emt 0:04:23]} 6. Nf3 {[%emt 0:08:08]} Nc6 {[%emt 0:05:59]} 7. O-O {[%emt 0:05:13]} Bc5 {[%emt 0:00:18]} 8. Nc3 {[%emt 0:01:42]} d6 {[%emt 0:01:34]} 9. h3 {[%emt 0:04:40]} b5 {[%emt 0:06:10]} 10. a3 {[%emt 0:03:45]} h6 {[%emt 0:00:56]} 11. b4 {[%emt 0:07:13]} Bb6 {[%emt 0:09:19]} 12. Rb1 {[%emt 0:02:58]} O-O {[%emt 0:03:19]} 13. a4 {[%emt 0:03:18]} bxa4 {[%emt 0:05:30]} 14. Nxa4 {[%emt 0:00:22]} Ba7 {[%emt 0:00:25]} 15. c4 {[%emt 0:06:01]} Rb8 {[%emt 0:04:02]} 16. Bd2 {[%emt 0:04:28]} Be6 {[%emt 0:15:16]} 17. b5 {[%emt 0:23:16]} axb5 {[%emt 0:02:32]} 18. cxb5 {[%emt 0:00:07]} Nd4 {[%emt 0:00:49]} 19. b6 {[%emt 0:02:59]} Bxb6 {[%emt 0:01:11]} 20. Rxb6 {[%emt 0:02:35]} Nxf3+ {[%emt 0:04:38]} 21. Qxf3 {[%emt 0:00:19]} Rxb6 {[%emt 0:00:13]} 22. Nxb6 {[%emt 0:00:26]} Qxb6 {[%emt 0:00:23]} 23. Bxh6 {[%emt 0:00:08]} gxh6 {[%emt 0:06:52]} 24. Qxf6 {[%emt 0:00:08]} Kh7 {[%emt 0:00:08]} 25. Kh2 {[%emt 0:05:05]} Qd8 {[%emt 0:03:12]} 26. Qf3 {[%emt 0:01:04]} Qe7 {[%emt 0:02:37]} 27. Qe3 {[%emt 0:00:46]} f6 {[%emt 0:02:34]} 28. Ra1 {[%emt 0:00:38]} Rf7 {[%emt 0:01:24]} 29. Ra8 {[%emt 0:02:02]} Qb7 {[%emt 0:00:49]} 30. Ra6 {[%emt 0:01:22]} Qc7 {[%emt 0:00:25]} 31. Be2 {[%emt 0:01:46]} Rg7 {[%emt 0:00:18]} 32. Qd2 {[%emt 0:00:27]} Rd7 {[%emt 0:02:09]} 33. Bb5 {[%emt 0:00:39]} Rd8 {[%emt 0:00:15]} 34. Qe3 {[%emt 0:03:00]} Rb8 {[%emt 0:02:16]} 35. Bc6 {[%emt 0:01:02]} Bd7 {[%emt 0:02:28]} 36. Bd5 {[%emt 0:00:33]} Rc8 {[%emt 0:01:05]} 37. Ra7 {[%emt 0:00:37]} Qd8 {[%emt 0:00:14]} 38. Qb3 {[%emt 0:00:13]} Kh8 {[%emt 0:03:12]} 39. Qb7 {[%emt 0:00:12]} 1-0